fUSD/lending_fUSD_20240913
["ID","MTS","AMOUNT","RATE_DAILY","PERIOD"]
[337910147,1726204235020,-3149.03,0.00012963,2]
[337910148,1726204235029,-843.42,0.00012963,2]
[337910149,1726204235039,-500.0,0.00012963,2]
[337910150,1726204235048,-500.0,0.00012963,2]
[337910151,1726204235058,-500.0,0.00012963,2]
[337910152,1726204235067,-500.0,0.00012963,2]
[337910153,1726204235077,-760.51,0.00012963,2]
[337910154,1726204235087,-5205.92,0.00012963,2]
[337910155,1726204235096,-3017.23,0.00012963,2]
[337910156,1726204235106,-2852.52,0.00012963,2]
[337910157,1726204235115,-501.95,0.00012963,2]
[337910158,1726204235124,-2545.91,0.00012963,2]
[337910159,1726204235134,-514.7,0.00012963,2]
[337910160,1726204235143,-578.38,0.00012963,2]
[337910161,1726204235152,-3133.92,0.00012963,2]
[337910162,1726204235163,-622.03,0.00012963,2]
[337910163,1726204235172,-610.11,0.00012963,2]
[337910164,1726204235181,-5123.84,0.00012963,2]
[337910165,1726204235191,-500.0,0.00012963,2]
[337910166,1726204235200,-1858.86,0.00012963,2]
[337910167,1726204235210,-500.0,0.00012963,2]
[337910168,1726204235219,-500.0,0.00012963,2]
[337910169,1726204235232,-6069.66,0.00012963,2]
[337910170,1726204235241,-570.13,0.00012963,2]
[337910171,1726204235250,-3228.08,0.00012963,2]
[337910172,1726204235260,-500.0,0.00012963,2]
[337910173,1726204235270,-1319.68,0.00012963,2]
[337910174,1726204235280,-2630.15,0.00012963,2]
[337910175,1726204235289,-5215.32,0.00012963,2]
[337910176,1726204235300,-1674.76,0.00012963,2]
[337910177,1726204235309,-500.0,0.00012963,2]
[337910178,1726204235318,-1736.59,0.00012963,2]
[337910179,1726204235328,-4061.96,0.00012963,2]
[337910180,1726204235336,-500.0,0.00012963,2]
[337910181,1726204235346,-5160.58,0.00012963,2]
[337910182,1726204235355,-1729.06,0.00012963,2]
[337910183,1726204235364,-6139.49,0.00012963,2]
[337910184,1726204235373,-1029.08,0.00012963,2]
[337910185,1726204235383,-624.37,0.00012963,2]
[337910186,1726204235392,-500.0,0.00012963,2]
[337910187,1726204235401,-817.41,0.00012963,2]
[337910188,1726204235410,-1345.53,0.00012963,2]
[337910189,1726204235420,-500.0,0.00012963,2]
[337910190,1726204235429,-1534.79,0.00012963,2]
[337910191,1726204235438,-1308.4,0.00012963,2]
[337910192,1726204235448,-1076.77,0.00012963,2]
[337910193,1726204235457,-670.02,0.00012963,2]
[337910194,1726204235466,-582.12,0.00012963,2]
[337910195,1726204235475,-10076.54,0.00012963,2]
[337910196,1726204235484,-6926.04,0.00012963,2]
[337910197,1726204235493,-500.0,0.00012963,2]
[337910198,1726204235502,-500.0,0.00012963,2]
[337910199,1726204235511,-23011.06648983,0.00012963,2]
[337910200,1726204235523,-503.88900716,0.00012963,2]
[337910201,1726204235534,-8969.12578278,0.00012963,2]
[337910202,1726204235545,-7405.61425287,0.00012963,2]
[337910203,1726204235557,-555.90330277,0.00012963,2]
[337910204,1726204235568,-439.96116459,0.00012963,2]
[337910205,1726204235577,-330.88495842,0.00012963,2]
[337910213,1726204237515,-394.14575585,0.00012962,2]
[337910214,1726204237527,-3876.89018452,0.00012962,2]
[337910217,1726204237579,-1217.83405963,0.00012962,2]
[337910218,1726204237589,-169.11504158,0.00012963,2]
[337910219,1726204237598,-1738.75709159,0.00012963,2]
[337910220,1726204237609,-7247.22290841,0.00012963,2]
[337910221,1726204237618,-500.0,0.00012963,2]
[337910222,1726204237627,-4657.61,0.00012963,2]
[337910223,1726204237635,-6922.97,0.00012963,2]
[337910224,1726204237645,-500.0,0.00012963,2]
[337910225,1726204237654,-1270.26886608,0.00012963,2]
[337910226,1726204237666,-1794.43113392,0.00012963,2]
[337910227,1726204237675,-4361.55,0.00012963,2]
[337910228,1726204237683,-1325.96,0.00012963,2]
[337910229,1726204237692,-1242.98,0.00012963,2]
[337910230,1726204237701,-500.0,0.00012963,2]
[337910231,1726204237710,-552.48013675,0.00012963,2]
[337910232,1726204237721,-965.47893929,0.00012963,2]
[337910233,1726204237732,-1830.13092396,0.00012963,2]
[337910234,1726204237741,-89.35999867,0.00012963,2]
[337910235,1726204237752,-2859.70000133,0.00012963,2]
[337910236,1726204237761,-34.57897127,0.00012963,2]
[337910237,1726204237789,-3048.37102873,0.00012963,2]
[337910238,1726204237800,-15826.24,0.00012963,2]
[337910239,1726204237811,-4124.09,0.00012963,2]
[337910240,1726204237822,-500.0,0.00012964,2]
[337910241,1726204237833,-500.0,0.00012964,2]
[337910242,1726204237843,-500.0,0.00012964,2]
[337910243,1726204237853,-574.9,0.00012964,2]
[337910244,1726204237862,-2478.28,0.00012964,2]
[337910245,1726204237871,-711.55,0.00012964,2]
[337910246,1726204237882,-500.0,0.00012964,2]
[337910247,1726204237891,-3327.34,0.00012964,2]
[337910248,1726204237901,-3179.7,0.00012964,2]
[337910249,1726204237911,-4372.51,0.00012964,2]
[337910250,1726204237921,-4647.46,0.00012964,2]
[337910251,1726204237931,-567.87,0.00012964,2]
[337910253,1726204237940,-500.0,0.00012964,2]
[337910255,1726204237951,-4304.36,0.00012964,2]
[337910257,1726204237960,-500.0,0.00012964,2]
[337910259,1726204237969,-1540.8,0.00012964,2]
[337910261,1726204237978,-685.5,0.00012964,2]
[337910263,1726204237988,-500.0,0.00012964,2]
[337910265,1726204237997,-2881.39,0.00012964,2]
[337910266,1726204238006,-6115.25,0.00012964,2]
[337910268,1726204238015,-2270.16,0.00012964,2]
[337910270,1726204238024,-2190.52,0.00012964,2]
[337910272,1726204238034,-500.0,0.00012964,2]
[337910274,1726204238044,-500.0,0.00012964,2]
[337910276,1726204238055,-225.8521506,0.00012964,2]
[337910278,1726204238064,-631.07,0.00012964,2]
[337910280,1726204238074,-500.0,0.00012964,2]
[337910282,1726204238083,-3067.79,0.00012964,2]
[337910284,1726204238091,-500.0,0.00012964,2]
[337910287,1726204238101,-2987.0,0.00012964,2]
[337910289,1726204238110,-500.0,0.00012964,2]
[337910292,1726204238119,-2358.71,0.00012964,2]
[337910295,1726204238128,-2991.06,0.00012964,2]
[337910298,1726204238137,-609.78253381,0.00012964,2]
[337910299,1726204238146,-2974.05,0.00012964,2]
[337910302,1726204238156,-500.0,0.00012964,2]
[337910305,1726204238165,-500.0,0.00012964,2]
[337910308,1726204238174,-2209.05,0.00012964,2]
[337910311,1726204238183,-886.27,0.00012964,2]
[337910313,1726204238193,-2164.82,0.00012964,2]
[337910315,1726204238202,-1290.24,0.00012964,2]
[337910318,1726204238211,-500.0,0.00012964,2]
[337910321,1726204238220,-1359.31,0.00012964,2]
[337910324,1726204238230,-1359.83,0.00012964,2]
[337910325,1726204238241,-500.0,0.00012964,2]
[337910328,1726204238251,-2496.71,0.00012964,2]
[337910331,1726204238260,-599.69,0.00012964,2]
[337910334,1726204238269,-2408.07,0.00012964,2]
[337910337,1726204238280,-960.5,0.00012964,2]
[337910340,1726204238290,-500.0,0.00012964,2]
[337910343,1726204238299,-5674.68,0.00012964,2]
[337910345,1726204238308,-742.98,0.00012964,2]
[337910347,1726204238319,-974.73,0.00012964,2]
[337910349,1726204238328,-500.0,0.00012964,2]
[337910350,1726204238337,-956.89,0.00012964,2]
[337910352,1726204238346,-511.42,0.00012964,2]
[337910354,1726204238356,-2170.92,0.00012964,2]
[337910356,1726204238365,-500.0,0.00012964,2]
[337910358,1726204238374,-4122.89,0.00012964,2]
[337910360,1726204238383,-2957.84,0.00012964,2]
[337910362,1726204238392,-1358.06,0.00012964,2]
[337910364,1726204238401,-505.1,0.00012964,2]
[337910366,1726204238411,-1859.15,0.00012964,2]
[337910368,1726204238421,-4953.36,0.00012964,2]
[337910370,1726204238430,-3283.32,0.00012964,2]
[337910371,1726204238439,-161.49087513,0.00012964,2]
[337910373,1726204238448,-2998.59,0.00012964,2]
[337910375,1726204238458,-2407.17,0.00012964,2]
[337910377,1726204238467,-603.7,0.00012964,2]
[337910379,1726204238476,-300.41064407,0.00012964,2]
[337910381,1726204238485,-1239.13,0.00012964,2]
[337910383,1726204238494,-1165.67,0.00012964,2]
[337910385,1726204238503,-765.86,0.00012964,2]
[337910386,1726204238512,-500.0,0.00012964,2]
[337910388,1726204238521,-500.0,0.00012964,2]
[337910390,1726204238530,-1611.01,0.00012964,2]
[337910392,1726204238539,-2754.45,0.00012964,2]
[337910394,1726204238548,-500.0,0.00012964,2]
[337910396,1726204238557,-2506.85,0.00012964,2]
[337910398,1726204238566,-734.11,0.00012964,2]
[337910400,1726204238576,-515.39,0.00012964,2]
[337910402,1726204238585,-1408.22,0.00012964,2]
[337910403,1726204238595,-552.56,0.00012964,2]
[337910405,1726204238604,-4352.74,0.00012964,2]
[337910407,1726204238613,-2952.77,0.00012964,2]
[337910409,1726204238622,-500.0,0.00012964,2]
[337910411,1726204238632,-1236.45,0.00012964,2]
[337910413,1726204238641,-500.0,0.00012964,2]
[337910415,1726204238650,-4639.72,0.00012964,2]
[337910417,1726204238659,-2629.89,0.00012964,2]
[337910418,1726204238668,-1319.14,0.00012964,2]
[337910420,1726204238677,-738.8,0.00012964,2]
[337910422,1726204238687,-970.69,0.00012964,2]
[337910424,1726204238696,-3356.79,0.00012964,2]
[337910426,1726204238705,-500.0,0.00012964,2]
[337910428,1726204238714,-3145.1,0.00012964,2]
[337910430,1726204238723,-2927.02,0.00012964,2]
[337910432,1726204238732,-500.0,0.00012964,2]
[337910433,1726204238741,-1161.72,0.00012964,2]
[337910435,1726204238750,-4909.01,0.00012964,2]
[337910437,1726204238759,-3380.07,0.00012964,2]
[337910439,1726204238768,-1078.4,0.00012964,2]
[337910441,1726204238777,-500.0,0.00012964,2]
[337910443,1726204238786,-2263.97,0.00012964,2]
[337910445,1726204238794,-500.0,0.00012964,2]
[337910447,1726204238803,-580.60482433,0.00012964,2]
[337910449,1726204238812,-2948.16,0.00012964,2]
[337910451,1726204238821,-500.0,0.00012964,2]
[337910453,1726204238830,-2977.26,0.00012964,2]
[337910455,1726204238839,-1134.31,0.00012964,2]
[337910457,1726204238848,-860.79,0.00012964,2]
[337910459,1726204238857,-1000.53,0.00012964,2]
[337910461,1726204238866,-500.0,0.00012964,2]
[337910463,1726204238875,-2279.39,0.00012964,2]
[337910465,1726204238884,-500.0,0.00012964,2]
[337910467,1726204238893,-505.5,0.00012964,2]
[337910468,1726204238902,-555.73,0.00012964,2]
[337910471,1726204238912,-966.45,0.00012964,2]
[337910473,1726204238923,-1063.39,0.00012964,2]
[337910475,1726204238933,-1016.88,0.00012964,2]
[337910477,1726204238945,-2902.47,0.00012964,2]
[337910479,1726204238954,-1779.2,0.00012964,2]
[337910480,1726204238963,-2123.95,0.00012964,2]
[337910482,1726204238973,-500.0,0.00012964,2]
[337910484,1726204238982,-1651.41,0.00012964,2]
[337910486,1726204238992,-1647.19,0.00012964,2]
[337910488,1726204239002,-929.01,0.00012964,2]
[337910490,1726204239011,-3780.98,0.00012964,2]
[337910492,1726204239020,-715.99,0.00012964,2]
[337910494,1726204239030,-536.0,0.00012965,2]
[337910496,1726204239039,-1964.4,0.00012965,2]
[337910498,1726204239048,-2850.37,0.00012965,2]
[337910500,1726204239057,-500.0,0.00012965,2]
[337910502,1726204239067,-2589.53,0.00012965,2]
[337910503,1726204239076,-2655.06,0.00012965,2]
[337910505,1726204239085,-2373.29,0.00012965,2]
[337910507,1726204239095,-3532.13,0.00012965,2]
[337910509,1726204239104,-2120.54,0.00012965,2]
[337910511,1726204239113,-2077.01,0.00012965,2]
[337910513,1726204239122,-1065.63,0.00012965,2]
[337910515,1726204239131,-500.0,0.00012965,2]
[337910517,1726204239140,-3639.3,0.00012965,2]
[337910518,1726204239150,-4166.34,0.00012965,2]
[337910520,1726204239160,-5280.14,0.00012965,2]
[337910522,1726204239170,-3485.44,0.00012965,2]
[337910524,1726204239179,-4130.17,0.00012965,2]
[337910526,1726204239188,-500.0,0.00012965,2]
[337910528,1726204239198,-500.0,0.00012965,2]
[337910530,1726204239207,-4504.36,0.00012965,2]
[337910532,1726204239216,-768.92,0.00012965,2]
[337910534,1726204239226,-1504.48,0.00012965,2]
[337910535,1726204239236,-500.0,0.00012965,2]
[337910536,1726204239246,-500.0,0.00012965,2]
[337910537,1726204239255,-5106.53,0.00012965,2]
[337910538,1726204239264,-300.0,0.00012969,2]
[337910539,1726204239273,-151.785,0.0001297,2]
[337910540,1726204239283,-371.99471297,0.00012973,2]
[337910541,1726204239292,-500.0,0.00012973,2]
[337910542,1726204239301,-500.0,0.00012973,2]
[337910543,1726204239310,-1500.0,0.00012975,2]
[337910544,1726204239320,-150.0,0.00012977,2]
[337910545,1726204239330,-1500.0,0.00012981,2]
[337910546,1726204239339,-150.0,0.00012981,2]
[337910547,1726204239348,-1500.0,0.00012985,2]
[337910548,1726204239358,-150.0,0.00012986,2]
[337910549,1726204239367,-150.0,0.00012986,2]
[337910550,1726204239376,-1500.0,0.00012988,2]
[337910551,1726204239385,-150.0,0.00012993,2]
[337910553,1726204239395,-150.0,0.00012998,2]
[337910555,1726204239404,-1517.34,0.00013,2]
[337910557,1726204239413,-226.8089,0.00013,2]
[337910559,1726204239422,-302.28,0.00013,2]
[337910560,1726204239432,-28606.66360945,0.00013,2]
[337910562,1726204239441,-1003.54,0.00013,2]
[337910564,1726204239451,-150.0,0.00013002,2]
[337910566,1726204239460,-150.0,0.00013004,2]
[337910568,1726204239469,-150.0,0.00013005,2]
[337910570,1726204239478,-150.0,0.00013007,2]
[337910572,1726204239487,-932.0,0.00013009,2]
[337910574,1726204239497,-558.0,0.00013009,2]
[337910576,1726204239506,-810.0,0.00013009,2]
[337910579,1726204239516,-1901.0,0.00013009,2]
[337910582,1726204239525,-553.0,0.00013009,2]
[337910585,1726204239534,-806.0,0.00013009,2]
[337910588,1726204239543,-3344.0,0.00013009,2]
[337910590,1726204239553,-248.0,0.00013009,2]
[337910592,1726204239562,-1125.0,0.00013009,2]
[337910594,1726204239571,-150.0,0.00013009,2]
[337910596,1726204239580,-5862.0,0.00013009,2]
[337910598,1726204239589,-9312.0,0.00013009,2]
[337910600,1726204239598,-530.871,0.00013009,2]
[337910601,1726204239607,-1079.0,0.00013009,2]
[337910603,1726204239616,-1500.0,0.00013017,2]
[337910605,1726204239625,-150.0,0.0001302,2]
[337910607,1726204239634,-150.0,0.0001302,2]
[337910609,1726204239643,-150.0,0.0001302,2]
[337910611,1726204239652,-150.0,0.00013021,2]
[337910613,1726204239661,-150.0,0.00013021,2]
[337910615,1726204239671,-150.0,0.00013023,2]
[337910617,1726204239680,-286.842,0.00013023,2]
[337910619,1726204239689,-150.0,0.00013023,2]
[337910621,1726204239698,-150.0,0.00013023,2]
[337910623,1726204239707,-150.0,0.00013023,2]
[337910625,1726204239716,-443.649,0.00013023,2]
[337910627,1726204239726,-624.0,0.00013023,2]
[337910629,1726204239735,-1547.0,0.00013023,2]
[337910631,1726204239744,-1261.0,0.00013023,2]
[337910633,1726204239753,-150.0,0.00013025,2]
[337910635,1726204239762,-150.0,0.00013025,2]
[337910637,1726204239771,-150.0,0.00013032,2]
[337910639,1726204239779,-150.0,0.00013034,2]
[337910641,1726204239788,-150.0,0.00013037,2]
[337910642,1726204239797,-1500.0,0.00013038,2]
[337910644,1726204239806,-150.0,0.00013039,2]
[337910646,1726204239815,-150.0,0.0001304,2]
[337910648,1726204239825,-150.0,0.0001304,2]
[337910650,1726204239834,-150.0,0.0001304,2]
[337910652,1726204239843,-288.41055394,0.0001304,2]
[337910654,1726204239853,-150.0,0.0001304,2]
[337910656,1726204239862,-150.0,0.00013041,2]
[337910658,1726204239871,-150.0,0.00013041,2]
[337910660,1726204239880,-150.0,0.00013044,2]
[337910662,1726204239889,-150.0,0.00013048,2]
[337910664,1726204239899,-150.0,0.00013055,2]
[337910666,1726204239908,-150.0,0.00013058,2]
[337910668,1726204239919,-150.0,0.0001306,2]
[337910669,1726204239928,-150.0,0.00013062,2]
[337910671,1726204239937,-150.0,0.00013064,2]
[337910673,1726204239947,-150.0,0.00013066,2]
[337910675,1726204239956,-150.0,0.00013066,2]
[337910677,1726204239965,-150.0,0.00013067,2]
[337910679,1726204239975,-150.0,0.00013068,2]
[337910681,1726204239984,-300.0,0.00013068,2]
[337910683,1726204239994,-150.0,0.00013069,2]
[337910685,1726204240003,-150.0,0.00013071,2]
[337910687,1726204240013,-150.0,0.00013072,2]
[337910689,1726204240022,-150.0,0.00013073,2]
[337910691,1726204240031,-150.0,0.00013073,2]
[337910694,1726204240041,-150.0,0.00013075,2]
[337910696,1726204240050,-150.0,0.00013075,2]
[337910698,1726204240059,-150.0,0.00013078,2]
[337910700,1726204240068,-150.0,0.00013079,2]
[337910702,1726204240078,-150.0,0.00013082,2]
[337910704,1726204240088,-150.0,0.00013084,2]
[337910706,1726204240097,-150.0,0.00013085,2]
[337910708,1726204240107,-19205.65938531,0.00013088,2]
[337910710,1726204240116,-150.0,0.00013092,2]
[337910712,1726204240125,-153.63575951,0.00013094,2]
[337910714,1726204240135,-1500.0,0.00013096,2]
[337910716,1726204240144,-150.0,0.00013096,2]
[337910718,1726204240153,-33544.721,0.000131,2]
[337910720,1726204240163,-357.7,0.000131,2]
[337910722,1726204240176,-357.7,0.000131,2]
[337910724,1726204240185,-357.7,0.000131,2]
[337910726,1726204240195,-357.7,0.000131,2]
[337910728,1726204240204,-357.7,0.000131,2]
[337910729,1726204240215,-150.0,0.000131,2]
[337910732,1726204240227,-150.0,0.00013101,2]
[337910734,1726204240237,-168.12214362,0.00013101,2]
[337910735,1726204240246,-150.0,0.00013102,2]
[337910737,1726204240255,-1500.0,0.00013103,2]
[337910739,1726204240265,-1500.0,0.00013104,2]
[337910741,1726204240274,-150.0,0.00013108,2]
[337910743,1726204240284,-150.0,0.00013109,2]
[337910745,1726204240293,-1028.83859,0.0001311,2]
[337910747,1726204240303,-150.0,0.00013117,2]
[337910749,1726204240312,-150.0,0.00013119,2]
[337910751,1726204240321,-150.0,0.0001312,2]
[337910753,1726204240331,-150.0,0.00013123,2]
[337910755,1726204240340,-150.0,0.00013126,2]
[337910756,1726204240349,-150.0,0.00013128,2]
[337910758,1726204240358,-150.0,0.0001313,2]
[337910760,1726204240368,-150.0,0.00013132,2]
[337910762,1726204240377,-150.0,0.00013133,2]
[337910764,1726204240386,-536.22696472,0.00013138,2]
[337910766,1726204240396,-1998.22556378,0.00013138,2]
[337910768,1726204240405,-1174.84611078,0.00013138,2]
[337910770,1726204240418,-150.0,0.00013139,2]
[337910772,1726204240433,-150.0,0.00013139,2]
[337910774,1726204240442,-150.0,0.0001314,2]
[337910776,1726204240451,-150.0,0.0001314,2]
[337910778,1726204240461,-1500.0,0.00013146,2]
[337910780,1726204240470,-150.0,0.00013149,2]
[337910782,1726204240480,-151.0,0.00013151,2]
[337910784,1726204240490,-150.0,0.00013157,2]
[337910786,1726204240499,-150.0,0.00013159,2]
[337910788,1726204240508,-150.0,0.0001316,2]
[337910790,1726204240517,-150.0,0.00013161,2]
[337910792,1726204240527,-150.0,0.00013161,2]
[337910794,1726204240535,-150.0,0.00013164,2]
[337910796,1726204240545,-150.0,0.00013169,2]
[337910798,1726204240554,-150.0,0.00013173,2]
[337910800,1726204240563,-1500.0,0.00013177,2]
[337910802,1726204240573,-150.0,0.00013179,2]
[337910804,1726204240582,-150.0,0.0001318,2]
[337910806,1726204240591,-150.0,0.0001318,2]
[337910808,1726204240601,-150.0,0.00013184,2]
[337910810,1726204240610,-150.0,0.00013188,2]
[337910812,1726204240620,-150.0,0.00013189,2]
[337910814,1726204240630,-150.0,0.00013193,2]
[337910816,1726204240638,-152.85,0.000132,2]
[337910818,1726204240648,-357.7,0.000132,2]
[337910820,1726204240657,-357.7,0.000132,2]
[337910822,1726204240669,-357.7,0.000132,2]
[337910824,1726204240678,-357.7,0.000132,2]
[337910825,1726204240687,-357.7,0.000132,2]
[337910827,1726204240696,-752.67,0.000132,2]
[337910829,1726204240705,-427.8,0.000132,2]
[337910831,1726204240714,-357.7,0.000132,2]
[337910833,1726204240723,-357.7,0.000132,2]
[337910835,1726204240732,-357.7,0.000132,2]
[337910837,1726204240741,-357.7,0.000132,2]
[337910839,1726204240750,-357.7,0.000132,2]
[337910841,1726204240759,-357.7,0.000132,2]
[337910843,1726204240769,-150.0,0.00013201,2]
[337910845,1726204240778,-150.0,0.00013202,2]
[337910847,1726204240787,-178.74737904,0.00013204,2]
[337910849,1726204240797,-150.0,0.00013205,2]
[337910851,1726204240806,-150.0,0.00013206,2]
[337910853,1726204240816,-150.0,0.00013206,2]
[337910855,1726204240825,-150.0,0.00013207,2]
[337910857,1726204240834,-150.0,0.00013211,2]
[337910859,1726204240844,-150.0,0.00013212,2]
[337910861,1726204240853,-1500.0,0.00013213,2]
[337910863,1726204240863,-188.13298413,0.00013213,2]
[337910865,1726204240872,-150.0,0.00013214,2]
[337910867,1726204240882,-150.0,0.00013214,2]
[337910869,1726204240891,-150.0,0.00013215,2]
[337910871,1726204240900,-150.0,0.00013217,2]
[337910873,1726204240909,-150.0,0.00013218,2]
[337910875,1726204240920,-150.0,0.00013226,2]
[337910877,1726204240930,-150.0,0.00013229,2]
[337910879,1726204240940,-150.0,0.00013231,2]
[337910881,1726204240949,-150.0,0.00013232,2]
[337910883,1726204240959,-5850.157592,0.00013232,2]
[337910885,1726204240968,-500.0,0.00013235,2]
[337910887,1726204240977,-1380.78,0.00013235,2]
[337910889,1726204240987,-150.0,0.00013236,2]
[337910891,1726204240996,-8935.9,0.00013236,2]
[337910893,1726204241005,-1434.34,0.00013236,2]
[337910895,1726204241015,-8483.51,0.00013236,2]
[337910897,1726204241024,-56252.09,0.00013236,2]
[337910899,1726204241033,-3979.48,0.00013236,2]
[337910901,1726204241043,-500.0,0.00013236,2]
[337910903,1726204241052,-1962.62,0.00013236,2]
[337910905,1726204241061,-860.97,0.00013236,2]
[337910907,1726204241070,-2353.28,0.00013236,2]
[337910908,1726204241080,-3536.45,0.00013236,2]
[337910910,1726204241089,-155.325693,0.00013236,2]
[337910912,1726204241098,-1152.94,0.00013236,2]
[337910914,1726204241108,-5722.4,0.00013236,2]
[337910916,1726204241118,-2709.99,0.00013236,2]
[337910918,1726204241128,-3371.11,0.00013236,2]
[337910920,1726204241137,-3189.72,0.00013236,2]
[337910922,1726204241146,-12612.31,0.00013236,2]
[337910924,1726204241156,-1337.01,0.00013236,2]
[337910926,1726204241166,-3843.6,0.00013236,2]
[337910928,1726204241175,-5723.66,0.00013236,2]
[337910930,1726204241186,-1456.12,0.00013236,2]
[337910932,1726204241195,-2753.52,0.00013236,2]
[337910934,1726204241204,-3668.67,0.00013236,2]
[337910936,1726204241212,-3674.61,0.00013236,2]
[337910938,1726204241222,-4422.95,0.00013236,2]
[337910940,1726204241233,-20572.59,0.00013236,2]
[337910942,1726204241242,-3050.88,0.00013236,2]
[337910944,1726204241251,-6270.98,0.00013236,2]
[337910945,1726204241260,-2919.12,0.00013236,2]
[337910947,1726204241269,-5030.42,0.00013236,2]
[337910949,1726204241278,-54185.45,0.00013236,2]
[337910951,1726204241287,-11815.52,0.00013236,2]
[337910953,1726204241297,-5008.11,0.00013236,2]
[337910955,1726204241306,-3232.61,0.00013236,2]
[337910957,1726204241315,-8798.47,0.00013236,2]
[337910959,1726204241324,-3459.42,0.00013236,2]
[337910961,1726204241334,-4474.93,0.00013236,2]
[337910962,1726204241343,-3905.7,0.00013236,2]
[337910964,1726204241352,-2909.85,0.00013236,2]
[337910966,1726204241362,-1884.22,0.00013236,2]
[337910968,1726204241371,-1710.69,0.00013236,2]
[337910991,1726204241585,-11404.9,0.00013236,2]
[337910994,1726204241596,-2016.86,0.00013236,2]
[337910996,1726204241606,-955.21,0.00013236,2]
[337910998,1726204241615,-4130.67384891,0.00013236,2]
[337911000,1726204241631,-1507.57772365,0.00013236,2]
[337911002,1726204241643,-775.61553959,0.00013236,2]
[337911005,1726204241654,-1698.03970922,0.00013236,2]
[337911007,1726204241665,-297.59433797,0.00013236,2]
[337911009,1726204241677,-1754.96884066,0.00013236,2]
[337911011,1726204241686,-1391.82495934,0.00013236,2]
[337911013,1726204241697,-435.35854429,0.00013236,2]
[337911015,1726204241708,-884.28010879,0.00013236,2]
[337911018,1726204241720,-2552.68170889,0.00013236,2]
[337911020,1726204241731,-1013.63400006,0.00013236,2]
[337911022,1726204241743,-688.87824435,0.00013236,2]
[337911024,1726204241754,-380.19788825,0.00013236,2]
[337911026,1726204241765,-664.7658,0.00013236,2]
[337911028,1726204241776,-2388.94041669,0.00013236,2]
[337911031,1726204241788,-495.49092495,0.00013236,2]
[337911033,1726204241799,-1107.2408442,0.00013236,2]
[337911035,1726204241810,-664.21656019,0.00013236,2]
[337911037,1726204241820,-150.9588351,0.00013236,2]
[337911039,1726204241830,-1648.83,0.00013236,2]
[337911041,1726204241840,-951.53,0.00013236,2]
[337911043,1726204241850,-3265.75,0.00013236,2]
[337911045,1726204241860,-1231.98,0.00013236,2]
[337911047,1726204241869,-1339.53,0.00013236,2]
[337911049,1726204241879,-500.0,0.00013236,2]
[337911051,1726204241888,-826.43,0.00013236,2]
[337911053,1726204241898,-5488.87,0.00013236,2]
[337911055,1726204241908,-3109.17657982,0.00013237,2]
[337911057,1726204241920,-1079.19611686,0.00013237,2]
[337911059,1726204241931,-1921.64848006,0.00013237,2]
[337911062,1726204241942,-2537.44697702,0.00013237,2]
[337911064,1726204241951,-1012.03,0.00013237,2]
[337911066,1726204241960,-633.48,0.00013237,2]
[337911068,1726204241970,-394.35908622,0.00013237,2]